fUSD/lending_fUSD_20240814
["ID","MTS","AMOUNT","RATE_DAILY","PERIOD"]
[334847674,1723608644498,-673.85,0.00013698,2]
[334847676,1723608644508,-618.38,0.00013698,2]
[334847678,1723608644518,-850.07,0.00013698,2]
[334847680,1723608644528,-500.0,0.00013698,2]
[334847682,1723608644537,-971.67,0.00013698,2]
[334847684,1723608644548,-1459.12,0.00013698,2]
[334847685,1723608644558,-9196.9,0.00013698,2]
[334847686,1723608644568,-500.0,0.00013698,2]
[334847687,1723608644577,-1396.98,0.00013698,2]
[334847688,1723608644586,-1349.79,0.00013698,2]
[334847689,1723608644596,-1156.43,0.00013698,2]
[334847690,1723608644609,-500.0,0.00013698,2]
[334847691,1723608644619,-645.42,0.00013698,2]
[334847692,1723608644629,-500.0,0.00013698,2]
[334847693,1723608644649,-500.0,0.00013698,2]
[334847694,1723608644660,-2857.35,0.00013698,2]
[334847695,1723608644671,-18094.07,0.00013698,2]
[334847696,1723608644681,-500.0,0.00013698,2]
[334847697,1723608644692,-1018.78,0.00013698,2]
[334847699,1723608644702,-500.0,0.00013698,2]
[334847701,1723608644711,-5817.26,0.00013698,2]
[334847703,1723608644721,-2918.16,0.00013698,2]
[334847705,1723608644731,-859.98,0.00013698,2]
[334847706,1723608644741,-1107.53,0.00013698,2]
[334847708,1723608644751,-898.94,0.00013698,2]
[334847710,1723608644761,-500.0,0.00013698,2]
[334847712,1723608644772,-873.33,0.00013698,2]
[334847714,1723608644782,-6571.54,0.00013698,2]
[334847716,1723608644792,-596.59,0.00013698,2]
[334847718,1723608644802,-500.0,0.00013698,2]
[334847721,1723608644812,-3316.48,0.00013698,2]
[334847723,1723608644822,-500.0,0.00013698,2]
[334847725,1723608644832,-500.0,0.00013698,2]
[334847727,1723608644842,-500.0,0.00013698,2]
[334847729,1723608644853,-2746.73,0.00013698,2]
[334847731,1723608644863,-9048.24,0.00013698,2]
[334847733,1723608644872,-883.53,0.00013698,2]
[334847735,1723608644882,-1129.69,0.00013698,2]
[334847737,1723608644892,-1681.58,0.00013698,2]
[334847739,1723608644902,-500.0,0.00013698,2]
[334847775,1723608645237,-873.53,0.00013698,2]
[334847779,1723608645261,-519.77,0.00013698,2]
[334847781,1723608645271,-1482.29,0.00013698,2]
[334847783,1723608645280,-500.0,0.00013698,2]
[334847785,1723608645290,-500.0,0.00013698,2]
[334847787,1723608645300,-1740.04,0.00013698,2]
[334847789,1723608645311,-500.0,0.00013698,2]
[334847791,1723608645320,-500.0,0.00013698,2]
[334847793,1723608645329,-2649.47,0.00013698,2]
[334847795,1723608645339,-2961.91,0.00013698,2]
[334847797,1723608645348,-500.0,0.00013698,2]
[334847799,1723608645357,-500.0,0.00013698,2]
[334847801,1723608645368,-2341.62,0.00013698,2]
[334847803,1723608645377,-500.0,0.00013698,2]
[334847805,1723608645387,-7738.38,0.00013698,2]
[334847807,1723608645398,-500.0,0.00013698,2]
[334847809,1723608645409,-1663.9,0.00013698,2]
[334847811,1723608645421,-500.0,0.00013698,2]
[334847813,1723608645432,-1987.28,0.00013698,2]
[334847815,1723608645442,-500.0,0.00013698,2]
[334847816,1723608645451,-2690.49,0.00013698,2]
[334847817,1723608645461,-500.0,0.00013698,2]
[334847818,1723608645470,-578.75,0.00013698,2]
[334847819,1723608645479,-500.0,0.00013698,2]
[334847820,1723608645489,-1119.77,0.00013698,2]
[334847821,1723608645500,-1509.64,0.00013698,2]
[334847822,1723608645509,-500.0,0.00013698,2]
[334847823,1723608645518,-9513.68,0.00013698,2]
[334847824,1723608645528,-500.0,0.00013698,2]
[334847825,1723608645538,-500.0,0.00013698,2]
[334847826,1723608645548,-2315.43,0.00013698,2]
[334847827,1723608645557,-4763.45,0.00013698,2]
[334847828,1723608645567,-500.0,0.00013698,2]
[334847829,1723608645576,-500.0,0.00013698,2]
[334847830,1723608645586,-581.95,0.00013698,2]
[334847831,1723608645596,-500.0,0.00013698,2]
[334847832,1723608645607,-7845.07,0.00013698,2]
[334847833,1723608645618,-12216.91,0.00013698,2]
[334847834,1723608645627,-500.0,0.00013698,2]
[334847836,1723608645637,-76095.12,0.00013698,2]
[334847838,1723608645647,-3954.68,0.00013698,2]
[334847840,1723608645656,-1488.3,0.00013698,2]
[334847842,1723608645666,-4589.3,0.00013698,2]
[334847844,1723608645676,-500.0,0.00013698,2]
[334847846,1723608645687,-952.31,0.00013698,2]
[334847848,1723608645697,-500.0,0.00013698,2]
[334847850,1723608645706,-720.5,0.00013698,2]
[334847852,1723608645717,-500.0,0.00013698,2]
[334847854,1723608645726,-1219.33,0.00013698,2]
[334847856,1723608645736,-500.0,0.00013698,2]
[334847858,1723608645745,-500.0,0.00013698,2]
[334847860,1723608645755,-7638.01,0.00013698,2]
[334847862,1723608645764,-1181.51,0.00013698,2]
[334847864,1723608645773,-1707.06,0.00013698,2]
[334847866,1723608645783,-500.0,0.00013698,2]
[334847868,1723608645792,-543.62,0.00013698,2]
[334847869,1723608645803,-500.0,0.00013698,2]
[334847872,1723608645813,-500.0,0.00013698,2]
[334847874,1723608645824,-1482.06,0.00013698,2]
[334847876,1723608645835,-1917.12,0.00013698,2]
[334847877,1723608645844,-1091.25,0.00013698,2]
[334847879,1723608645854,-13710.95,0.00013698,2]
[334847881,1723608645864,-500.0,0.00013698,2]
[334847883,1723608645874,-1432.01,0.00013698,2]
[334847885,1723608645884,-500.0,0.00013698,2]
[334847887,1723608645894,-963.67,0.00013698,2]
[334847889,1723608645904,-4606.88,0.00013698,2]
[334847891,1723608645914,-500.0,0.00013698,2]
[334847893,1723608645923,-500.0,0.00013698,2]
[334847895,1723608645933,-3508.68,0.00013698,2]
[334847897,1723608645943,-500.0,0.00013698,2]
[334847898,1723608645952,-1231.85,0.00013698,2]
[334847900,1723608645962,-945.87,0.00013698,2]
[334847902,1723608645972,-1634.05,0.00013698,2]
[334847904,1723608645981,-8455.05,0.00013698,2]
[334847906,1723608645990,-3414.4,0.00013698,2]
[334847908,1723608646000,-500.0,0.00013698,2]
[334847910,1723608646010,-213.18121144,0.00013698,2]
[334847912,1723608646019,-1098.96,0.00013698,2]
[334847914,1723608646029,-1248.66,0.00013698,2]
[334847916,1723608646038,-501.48442968,0.00013698,2]
[334847918,1723608646047,-1955.65,0.00013698,2]
[334847920,1723608646057,-364.56458914,0.00013698,2]
[334847921,1723608646066,-1070.28,0.00013698,2]
[334847923,1723608646076,-1678.09,0.00013698,2]
[334847925,1723608646085,-581.5,0.00013698,2]
[334847927,1723608646095,-500.0,0.00013698,2]
[334847929,1723608646105,-4633.68,0.00013698,2]
[334847931,1723608646114,-500.0,0.00013698,2]
[334847933,1723608646125,-1768.84,0.00013698,2]
[334847935,1723608646135,-1020.74,0.00013698,2]
[334847937,1723608646144,-500.0,0.00013698,2]
[334847938,1723608646153,-1630.53,0.00013698,2]
[334847940,1723608646163,-2908.31,0.00013698,2]
[334847942,1723608646173,-500.0,0.00013698,2]
[334847944,1723608646183,-1567.6,0.00013698,2]
[334847946,1723608646192,-2272.8,0.00013698,2]
[334847948,1723608646202,-1564.8,0.00013698,2]
[334847950,1723608646213,-1053.99,0.00013698,2]
[334847952,1723608646223,-500.0,0.00013698,2]
[334847953,1723608646233,-1778.96,0.00013698,2]
[334847954,1723608646242,-500.0,0.00013698,2]
[334847955,1723608646252,-1526.0,0.00013698,2]
[334847956,1723608646261,-2017.25,0.00013698,2]
[334847957,1723608646271,-2926.03,0.00013698,2]
[334847958,1723608646280,-500.0,0.00013698,2]
[334847959,1723608646289,-500.0,0.00013698,2]
[334847960,1723608646299,-500.0,0.00013698,2]
[334847961,1723608646309,-503.07,0.00013698,2]
[334847962,1723608646319,-500.0,0.00013698,2]
[334847963,1723608646328,-5717.78,0.00013698,2]
[334847964,1723608646338,-500.0,0.00013698,2]
[334847965,1723608646348,-642.19,0.00013698,2]
[334847966,1723608646360,-3098.65,0.00013698,2]
[334847967,1723608646370,-587.50996448,0.00013698,2]
[334847968,1723608646379,-500.0,0.00013698,2]
[334847969,1723608646389,-656.57,0.00013698,2]
[334847970,1723608646401,-500.0,0.00013698,2]
[334847971,1723608646410,-1095.29,0.00013698,2]
[334847972,1723608646420,-882.67,0.00013698,2]
[334847973,1723608646429,-500.0,0.00013698,2]
[334847974,1723608646439,-500.0,0.00013698,2]
[334847975,1723608646449,-1163.19,0.00013698,2]
[334847976,1723608646458,-500.0,0.00013698,2]
[334847977,1723608646468,-1011.58,0.00013698,2]
[334847978,1723608646477,-1839.71,0.00013698,2]
[334847979,1723608646487,-4376.0,0.00013698,2]
[334847980,1723608646497,-975.95,0.00013698,2]
[334847981,1723608646506,-1824.75,0.00013698,2]
[334847982,1723608646516,-2006.59,0.00013698,2]
[334847983,1723608646526,-500.0,0.00013698,2]
[334847984,1723608646536,-500.0,0.00013698,2]
[334847985,1723608646545,-1129.83,0.00013698,2]
[334847986,1723608646555,-500.0,0.00013698,2]
[334847987,1723608646566,-2707.28,0.00013698,2]
[334847988,1723608646575,-599.59,0.00013698,2]
[334847989,1723608646585,-2816.43,0.00013698,2]
[334847990,1723608646595,-1105.9,0.00013698,2]
[334847991,1723608646606,-500.0,0.00013698,2]
[334847992,1723608646618,-1246.58,0.00013698,2]
[334847993,1723608646628,-513.38393876,0.00013698,2]
[334847994,1723608646638,-500.0,0.00013698,2]
[334847995,1723608646648,-618.65,0.00013698,2]
[334847996,1723608646658,-3121.02,0.00013698,2]
[334847997,1723608646668,-500.0,0.00013698,2]
[334847998,1723608646679,-626.31,0.00013698,2]
[334847999,1723608646691,-2225.72,0.00013698,2]
[334848000,1723608646702,-1752.18,0.00013698,2]
[334848001,1723608646713,-500.0,0.00013698,2]
[334848002,1723608646723,-2944.16,0.00013698,2]
[334848003,1723608646733,-9258.3,0.00013698,2]
[334848004,1723608646744,-2198.91,0.00013698,2]
[334848005,1723608646754,-2087.95,0.00013698,2]
[334848006,1723608646764,-500.0,0.00013698,2]
[334848007,1723608646774,-500.0,0.00013698,2]
[334848008,1723608646784,-808.84,0.00013698,2]
[334848009,1723608646795,-500.0,0.00013698,2]
[334848010,1723608646805,-500.0,0.00013698,2]
[334848011,1723608646814,-4554.83,0.00013698,2]
[334848012,1723608646824,-1427.17,0.00013698,2]
[334848013,1723608646834,-500.0,0.00013698,2]
[334848014,1723608646844,-921.44,0.00013698,2]
[334848015,1723608646854,-1673.57,0.00013698,2]
[334848016,1723608646864,-2921.86,0.00013698,2]
[334848017,1723608646874,-500.0,0.00013698,2]
[334848018,1723608646886,-500.0,0.00013698,2]
[334848019,1723608646895,-1534.79,0.00013698,2]
[334848020,1723608646905,-1361.64,0.00013698,2]
[334848021,1723608646915,-500.0,0.00013698,2]
[334848022,1723608646926,-2395.86,0.00013698,2]
[334848023,1723608646937,-1145.41,0.00013698,2]
[334848024,1723608646947,-500.0,0.00013698,2]
[334848025,1723608646957,-721.76,0.00013698,2]
[334848026,1723608646967,-1304.76,0.00013698,2]
[334848027,1723608646977,-500.0,0.00013698,2]
[334848028,1723608646988,-2264.58,0.00013698,2]
[334848029,1723608646998,-500.0,0.00013698,2]
[334848030,1723608647007,-815.04,0.00013698,2]
[334848031,1723608647017,-500.0,0.00013698,2]
[334848032,1723608647027,-500.0,0.00013698,2]
[334848033,1723608647037,-1907.05,0.00013698,2]
[334848034,1723608647046,-1806.05,0.00013698,2]
[334848035,1723608647055,-1131.08,0.00013698,2]
[334848036,1723608647066,-1212.9,0.00013698,2]
[334848037,1723608647075,-500.0,0.00013698,2]
[334848038,1723608647085,-1344.73,0.00013698,2]
[334848039,1723608647095,-2166.65,0.00013698,2]
[334848040,1723608647105,-624.73,0.00013698,2]
[334848041,1723608647115,-1140.11,0.00013698,2]
[334848042,1723608647127,-500.0,0.00013698,2]
[334848043,1723608647136,-542.07,0.00013698,2]
[334848044,1723608647146,-500.0,0.00013698,2]
[334848045,1723608647156,-500.0,0.00013698,2]
[334848046,1723608647166,-500.0,0.00013698,2]
[334848047,1723608647175,-3301.13,0.00013698,2]
[334848048,1723608647185,-500.0,0.00013698,2]
[334848049,1723608647195,-6159.22,0.00013698,2]
[334848050,1723608647205,-615.91499204,0.00013698,2]
[334848051,1723608647215,-500.0,0.00013698,2]
[334848052,1723608647226,-500.0,0.00013698,2]
[334848053,1723608647236,-1709.06,0.00013698,2]
[334848054,1723608647246,-716.65,0.00013698,2]
[334848055,1723608647256,-500.0,0.00013698,2]
[334848056,1723608647265,-500.0,0.00013698,2]
[334848057,1723608647275,-1367.96,0.00013698,2]
[334848058,1723608647285,-255.80692331,0.00013698,2]
[334848059,1723608647295,-440.30604735,0.00013698,2]
[334848060,1723608647306,-1283.34,0.00013698,2]
[334848061,1723608647316,-2548.93,0.00013698,2]
[334848062,1723608647326,-1804.8,0.00013698,2]
[334848063,1723608647336,-500.0,0.00013698,2]
[334848064,1723608647346,-500.0,0.00013698,2]
[334848065,1723608647356,-500.0,0.00013698,2]
[334848066,1723608647366,-500.0,0.00013698,2]
[334848067,1723608647376,-1452.12,0.00013698,2]
[334848068,1723608647387,-973.11,0.00013698,2]
[334848069,1723608647396,-1267.99,0.00013698,2]
[334848070,1723608647406,-2044.42,0.00013698,2]
[334848071,1723608647416,-1469.01,0.00013698,2]
[334848072,1723608647426,-774.67,0.00013698,2]
[334848073,1723608647437,-500.0,0.00013698,2]
[334848074,1723608647446,-1790.3,0.00013698,2]
[334848075,1723608647457,-588.02,0.00013698,2]
[334848076,1723608647467,-513.58053765,0.00013698,2]
[334848077,1723608647477,-2135.05,0.00013698,2]
[334848078,1723608647487,-500.0,0.00013698,2]
[334848079,1723608647496,-500.0,0.00013698,2]
[334848080,1723608647506,-500.0,0.00013698,2]
[334848081,1723608647515,-672.65,0.00013698,2]
[334848082,1723608647526,-4327.53,0.00013698,2]
[334848083,1723608647535,-500.0,0.00013698,2]
[334848084,1723608647545,-500.0,0.00013698,2]
[334848085,1723608647554,-1671.79,0.00013698,2]
[334848086,1723608647564,-500.0,0.00013698,2]
[334848087,1723608647574,-500.0,0.00013698,2]
[334848088,1723608647583,-500.0,0.00013698,2]
[334848089,1723608647593,-500.0,0.00013698,2]
[334848090,1723608647604,-500.0,0.00013698,2]
[334848091,1723608647616,-5195.17,0.00013698,2]
[334848092,1723608647626,-1257.22,0.00013698,2]
[334848093,1723608647635,-500.0,0.00013698,2]
[334848094,1723608647720,-1249.15,0.00013698,2]
[334848095,1723608647730,-500.0,0.00013698,2]
[334848096,1723608647739,-1152.49,0.00013698,2]
[334848097,1723608647748,-10653.27,0.00013698,2]
[334848098,1723608647758,-2026.79,0.00013698,2]
[334848099,1723608647767,-1264.26,0.00013698,2]
[334848100,1723608647776,-2128.52,0.00013698,2]
[334848101,1723608647785,-866.15,0.00013698,2]
[334848102,1723608647794,-628.22,0.00013698,2]
[334848103,1723608647803,-3201.04,0.00013698,2]
[334848104,1723608647812,-500.0,0.00013698,2]
[334848105,1723608647821,-2982.77,0.00013698,2]
[334848106,1723608647830,-1151.63,0.00013698,2]
[334848107,1723608647839,-4855.25,0.00013698,2]
[334848108,1723608647848,-684.25,0.00013698,2]
[334848109,1723608647857,-912.61,0.00013698,2]
[334848110,1723608647866,-2320.06,0.00013698,2]
[334848111,1723608647876,-500.0,0.00013698,2]
[334848112,1723608647885,-1526.8,0.00013698,2]
[334848113,1723608647894,-3412.08,0.00013698,2]
[334848114,1723608647903,-2389.0,0.00013698,2]
[334848115,1723608647913,-3034.43,0.00013698,2]
[334848116,1723608647922,-500.0,0.00013698,2]
[334848117,1723608647932,-500.0,0.00013698,2]
[334848118,1723608647941,-1912.78,0.00013698,2]
[334848119,1723608647954,-4002.71,0.00013698,2]
[334848120,1723608647965,-500.0,0.00013698,2]
[334848121,1723608647976,-500.0,0.00013698,2]
[334848122,1723608647986,-500.0,0.00013698,2]
[334848123,1723608647997,-2048.96,0.00013698,2]
[334848124,1723608648007,-500.0,0.00013698,2]
[334848125,1723608648017,-500.0,0.00013698,2]
[334848126,1723608648026,-5734.17,0.00013698,2]
[334848127,1723608648035,-812.05,0.00013698,2]
[334848128,1723608648045,-1367.42,0.00013698,2]
[334848129,1723608648054,-9080.52,0.00013698,2]
[334848130,1723608648063,-790.5,0.00013698,2]
[334848131,1723608648073,-674.87,0.00013698,2]
[334848132,1723608648083,-500.0,0.00013698,2]
[334848133,1723608648092,-156.72,0.00013699,2]
[334848134,1723608648102,-153.21350088,0.00013799,2]
[334848135,1723608648111,-500.0,0.00013799,2]
[334848136,1723608648120,-2386.53343546,0.00013799,2]
[334848137,1723608648130,-365063.417372,0.000138,2]
[334848138,1723608648140,-546.87070022,0.00013899,2]
[334848139,1723608648150,-546.87070022,0.00013899,2]
[334848140,1723608648159,-500.0,0.00013899,2]
[334848141,1723608648169,-1500.0,0.00013899,2]
[334848142,1723608648178,-124455.236414,0.000139,2]
[334848143,1723608648200,-500.0,0.00013971,2]
[334848144,1723608648210,-485.70282557,0.00013971,2]
[334848145,1723608648220,-500.0,0.00013972,2]
[334848146,1723608648229,-393.67967674,0.00013972,2]
[334848147,1723608648239,-500.0,0.00013972,2]
[334848148,1723608648248,-503.56903771,0.00013972,2]
[334848149,1723608648257,-550.36,0.00013972,2]
[334848150,1723608648266,-744.62,0.00013972,2]
[334848151,1723608648276,-500.0,0.00013972,2]
[334848152,1723608648285,-808.56,0.00013972,2]
[334848153,1723608648295,-500.0,0.00013972,2]
[334848154,1723608648303,-501.88997981,0.00013972,2]
[334848155,1723608648312,-867.77,0.00013972,2]
[334848156,1723608648321,-500.0,0.00013972,2]
[334848157,1723608648331,-1524.25,0.00013972,2]
[334848158,1723608648340,-500.0,0.00013972,2]
[334848159,1723608648350,-500.0,0.00013972,2]
[334848160,1723608648360,-500.0,0.00013972,2]
[334848161,1723608648369,-500.0,0.00013972,2]
[334848162,1723608648378,-500.0,0.00013972,2]
[334848163,1723608648388,-500.0,0.00013972,2]
[334848164,1723608648397,-500.0,0.00013972,2]
[334848165,1723608648406,-1120.87,0.00013972,2]
[334848166,1723608648416,-794.3,0.00013972,2]
[334848167,1723608648425,-500.0,0.00013972,2]
[334848168,1723608648434,-1356.55,0.00013972,2]
[334848169,1723608648444,-500.0,0.00013972,2]
[334848170,1723608648453,-500.0,0.00013972,2]
[334848171,1723608648462,-1103.27,0.00013972,2]
[334848172,1723608648477,-500.0,0.00013972,2]
[334848173,1723608648487,-1233.42,0.00013972,2]
[334848174,1723608648496,-1108.58,0.00013972,2]
[334848175,1723608648506,-500.0,0.00013972,2]
[334848176,1723608648516,-500.0,0.00013972,2]
[334848177,1723608648525,-505.3577814,0.00013972,2]
[334848178,1723608648534,-500.0,0.00013972,2]
[334848179,1723608648544,-500.0,0.00013972,2]
[334848180,1723608648554,-730.63,0.00013972,2]
[334848181,1723608648564,-500.0,0.00013972,2]
[334848182,1723608648574,-835.96,0.00013972,2]
[334848183,1723608648583,-828.99,0.00013972,2]
[334848184,1723608648597,-1105.99,0.00013972,2]
[334848185,1723608648609,-646.4,0.00013972,2]
[334848186,1723608648619,-1354.23,0.00013972,2]
[334848187,1723608648628,-653.83,0.00013972,2]
[334848188,1723608648638,-500.0,0.00013972,2]
[334848189,1723608648648,-1040.79,0.00013972,2]
[334848190,1723608648658,-500.0,0.00013972,2]
[334848191,1723608648667,-500.0,0.00013972,2]
[334848192,1723608648677,-1439.89,0.00013972,2]
[334848193,1723608648689,-500.0,0.00013972,2]
[334848194,1723608648698,-500.0,0.00013972,2]
[334848195,1723608648708,-500.0,0.00013972,2]
[334848196,1723608648718,-1836.34,0.00013972,2]
[334848197,1723608648728,-500.0,0.00013972,2]
[334848198,1723608648737,-500.0,0.00013972,2]
[334848199,1723608648747,-836.32,0.00013972,2]
[334848200,1723608648757,-503.44,0.00013972,2]
[334848201,1723608648766,-500.0,0.00013972,2]
[334848202,1723608648775,-500.0,0.00013972,2]
[334848203,1723608648785,-500.0,0.00013972,2]
[334848204,1723608648794,-500.0,0.00013972,2]
[334848205,1723608648804,-340.56,0.00013972,2]
[334848206,1723608648813,-500.0,0.00013972,2]
[334848207,1723608648823,-558.96,0.00013972,2]
[334848208,1723608648832,-500.0,0.00013972,2]
[334848209,1723608648842,-500.0,0.00013972,2]
[334848210,1723608648851,-500.0,0.00013972,2]
[334848211,1723608648861,-500.0,0.00013972,2]
[334848212,1723608648870,-545.83,0.00013972,2]
[334848213,1723608648880,-500.0,0.00013972,2]
[334848214,1723608648890,-500.0,0.00013972,2]
[334848215,1723608648900,-1376.48,0.00013972,2]
[334848216,1723608648909,-500.0,0.00013972,2]
[334848217,1723608648918,-500.0,0.00013972,2]
[334848218,1723608648927,-500.0,0.00013972,2]
[334848219,1723608648936,-500.0,0.00013972,2]
[334848220,1723608648945,-500.0,0.00013972,2]
[334848221,1723608648954,-500.0,0.00013972,2]
[334848222,1723608648964,-631.38,0.00013972,2]
[334848223,1723608648973,-500.0,0.00013972,2]
[334848224,1723608648982,-500.0,0.00013972,2]
[334848225,1723608648991,-1005.09,0.00013972,2]
[334848226,1723608649000,-676.06,0.00013972,2]
[334848227,1723608649009,-636.2,0.00013972,2]
[334848228,1723608649018,-500.0,0.00013972,2]
[334848229,1723608649027,-500.0,0.00013972,2]
[334848230,1723608649036,-500.0,0.00013972,2]
[334848231,1723608649045,-937.05,0.00013972,2]
[334848232,1723608649054,-518.59,0.00013972,2]
[334848233,1723608649064,-824.77,0.00013972,2]
[334848234,1723608649074,-527.23,0.00013972,2]
[334848235,1723608649083,-500.0,0.00013972,2]
[334848236,1723608649092,-500.0,0.00013972,2]
[334848237,1723608649101,-500.0,0.00013972,2]
[334848238,1723608649111,-500.0,0.00013972,2]
[334848239,1723608649120,-500.0,0.00013972,2]
[334848240,1723608649130,-500.0,0.00013972,2]
[334848241,1723608649139,-500.0,0.00013972,2]
[334848242,1723608649148,-500.0,0.00013972,2]
[334848243,1723608649157,-719.78,0.00013972,2]
[334848244,1723608649167,-500.0,0.00013972,2]
[334848245,1723608649176,-500.0,0.00013972,2]
[334848246,1723608649185,-500.0,0.00013972,2]
[334848247,1723608649195,-500.0,0.00013972,2]
[334848248,1723608649204,-500.0,0.00013972,2]
[334848249,1723608649213,-400.0,0.00013972,2]
[334848250,1723608649223,-848.43,0.00013972,2]
[334848251,1723608649233,-500.0,0.00013972,2]
[334848252,1723608649242,-500.0,0.00013972,2]
[334848253,1723608649252,-500.0,0.00013972,2]
[334848254,1723608649261,-500.0,0.00013972,2]
[334848255,1723608649271,-622.32,0.00013972,2]
[334848256,1723608649281,-500.0,0.00013972,2]
[334848257,1723608649290,-675.11,0.00013972,2]
[334848258,1723608649300,-1201.53,0.00013972,2]
[334848259,1723608649310,-500.0,0.00013972,2]
[334848260,1723608649320,-500.0,0.00013972,2]
[334848261,1723608649329,-780.65,0.00013972,2]
[334848262,1723608649339,-500.0,0.00013972,2]
[334848263,1723608649349,-505.71,0.00013972,2]
[334848264,1723608649359,-500.0,0.00013972,2]
[334848265,1723608649369,-500.0,0.00013972,2]
[334848266,1723608649379,-500.0,0.00013972,2]
[334848267,1723608649388,-837.89,0.00013972,2]
[334848268,1723608649398,-788.27,0.00013972,2]
[334848269,1723608649407,-500.0,0.00013972,2]
[334848270,1723608649416,-537.59,0.00013972,2]
[334848271,1723608649425,-597.57,0.00013972,2]
[334848272,1723608649435,-797.14,0.00013972,2]
[334848273,1723608649444,-500.0,0.00013972,2]
[334848274,1723608649454,-500.0,0.00013972,2]
[334848275,1723608649463,-577.89,0.00013972,2]
[334848276,1723608649473,-574.57,0.00013972,2]
[334848277,1723608649482,-500.0,0.00013972,2]
[334848278,1723608649492,-500.0,0.00013972,2]
[334848279,1723608649502,-500.0,0.00013972,2]
[334848280,1723608649512,-500.0,0.00013972,2]
[334848281,1723608649521,-500.0,0.00013972,2]
[334848282,1723608649531,-500.0,0.00013972,2]
[334848283,1723608649540,-500.0,0.00013972,2]
[334848284,1723608649550,-571.82,0.00013972,2]
[334848285,1723608649559,-1368.81,0.00013972,2]
[334848286,1723608649569,-500.0,0.00013972,2]
[334848287,1723608649579,-500.0,0.00013972,2]
[334848288,1723608649588,-500.0,0.00013972,2]
[334848289,1723608649599,-500.0,0.00013972,2]
[334848290,1723608649614,-500.0,0.00013972,2]
[334848291,1723608649623,-500.0,0.00013972,2]
[334848292,1723608649633,-540.73748875,0.00013972,2]
[334848293,1723608649643,-1348.28,0.00013972,2]
[334848294,1723608649654,-604.07297668,0.00013972,2]
[334848295,1723608649664,-854.16,0.00013972,2]
[334848296,1723608649673,-500.0,0.00013972,2]
[334848297,1723608649683,-595.01,0.00013972,2]
[334848298,1723608649693,-1071.46,0.00013972,2]
[334848299,1723608649702,-500.0,0.00013972,2]
[334848300,1723608649711,-718.76,0.00013972,2]
[334848301,1723608649721,-500.0,0.00013972,2]
[334848302,1723608649730,-609.82,0.00013972,2]
[334848303,1723608649740,-500.0,0.00013972,2]
[334848304,1723608649749,-500.0,0.00013972,2]
[334848305,1723608649759,-500.0,0.00013972,2]
[334848306,1723608649769,-500.0,0.00013972,2]
[334848307,1723608649779,-674.91,0.00013972,2]
[334848308,1723608649788,-500.0,0.00013972,2]
[334848309,1723608649798,-500.0,0.00013972,2]
[334848310,1723608649807,-500.0,0.00013972,2]
[334848311,1723608649817,-1338.69,0.00013972,2]
[334848312,1723608649827,-825.9,0.00013972,2]